[Event "IIFL Wealth  4th Mumbai Junior U-13"]
[Site "Mumbai"]
[Date "2019.01.03"]
[Round "5"]
[White "Sara Mody"]
[Black "Rout Yashita"]
[Result "0-1"]
[ECO "C54"]
[WhiteElo "1060"]
[BlackElo "1264"]
[Annotator "NA RC"]
[PlyCount "70"]
[EventDate "2018.12.30"]
[EventType "swiss"]
[EventCountry "IND"]
[SourceTitle "playchess.com"]
[Source "ChessBase"]
[SourceQuality "1"]
[TimeControl "40/5400+30:1800+30"]

1. e4 e5 {[%emt 0:00:53]} 2. Nf3 {[%emt 0:00:00]} Nc6 {[%emt 0:00:10]} 3. Bc4 {[%emt 0:00:00]} Bc5 {[%emt 0:00:11]} 4. c3 {[%emt 0:00:02]} Nf6 {[%emt 0:00:14]} 5. d3 {[%emt 0:00:16]} a6 {[%emt 0:00:09]} 6. O-O {[%emt 0:00:17]} O-O {[%emt 0:04:57]} 7. Re1 {[%emt 0:00:26]} d6 {[%emt 0:00:13]} 8. h3 {[%emt 0:00:13]} Na5 {[%emt 0:01:30]} 9. Nbd2 {[%emt 0:02:20]} Ba7 {[%emt 0:01:55]} 10. Bb3 {[%emt 0:00:50]} Nxb3 {[%emt 0:00:47]} 11. axb3 {[%emt 0:01:38]} Re8 {[%emt 0:00:32]} 12. Nf1 {[%emt 0:00:47]} h6 {[%emt 0:09:03]} 13. Ng3 {[%emt 0:01:06]} c6 {[%emt 0:00:55]} 14. Nh4 {[%emt 0:01:12]} Ng4 {[%emt 0:01:15]} 15. Nhf5 {[%emt 0:01:28]} Nxf2 {[%emt 0:00:26]} 16. Qe2 {[%emt 0:03:33]} Nxd3+ {[%emt 0:00:41]} 17. Kh2 {[%emt 0:00:42]} Nxe1 {[%emt 0:00:16]} 18. Bxh6 {[%emt 0:05:45]} Bxf5 {[%emt 0:14:25]} 19. Nxf5 {[%emt 0:00:35]} Re6 {[%emt 0:04:21]} 20. Bd2 {[%emt 0:03:38]} Nxg2 {[%emt 0:01:01]} 21. Qxg2 {[%emt 0:00:20]} Rg6 {[%emt 0:00:20]} 22. Qe2 {[%emt 0:03:26]} d5 {[%emt 0:02:48]} 23. exd5 {[%emt 0:03:54]} cxd5 {[%emt 0:00:12]} 24. Qxe5 {[%emt 0:03:05]} Bb8 {[%emt 0:00:21]} 25. Re1 {[%emt 0:04:47]} Qe8 {[%emt 0:00:37]} 26. Bf4 {[%emt 0:03:22]} Bxe5 {[%emt 0:00:05]} 27. Rxe5 {[%emt 0:00:39]} Re6 {[%emt 0:00:07]} 28. Rxd5 {[%emt 0:02:08]} Re2+ {[%emt 0:00:16]} 29. Kg1 {[%emt 0:01:40]} Rd8 {[%emt 0:00:14]} 30. Rxd8 {[%emt 0:02:08]} Qxd8 {[%emt 0:00:10]} 31. Ne3 {[%emt 0:00:56]} Rxb2 {[%emt 0:00:23]} 32. b4 {[%emt 0:05:49]} Qd2 {[%emt 0:00:27]} 33. c4 {[%emt 0:02:24]} Qf2+ {[%emt 0:00:10]} 34. Kh1 {[%emt 0:00:59]} Qe1+ 35. Nf1 {[%emt 0:00:23]} Qxf1# {[%emt 0:00:17]} 0-1

[Event "IIFL Wealth  4th Mumbai Junior U-13"]
[Site "Mumbai"]
[Date "2019.01.03"]
[Round "5"]
[White "Sapre Vedang"]
[Black "Haldankar Dhruv"]
[Result "0-1"]
[ECO "C50"]
[WhiteElo "1049"]
[BlackElo "1245"]
[Annotator "NA"]
[PlyCount "31"]
[EventDate "2018.12.30"]
[EventType "swiss"]
[EventCountry "IND"]
[SourceTitle "playchess.com"]
[Source "ChessBase"]
[SourceQuality "1"]
[TimeControl "40/5400+30:1800+30"]

1. e4 {[%emt 0:00:00]} e5 {[%emt 0:00:00]} 2. Nf3 {[%emt 0:00:12]} Nc6 {[%emt 0:00:09]} 3. Bc4 {[%emt 0:00:40]} Bc5 {[%emt 0:00:16]} 4. Nc3 {[%emt 0:00:37]} d6 {[%emt 0:01:37]} 5. d3 {[%emt 0:00:47]} h6 {[%emt 0:07:13]} 6. Be3 {[%emt 0:00:32]} Bb6 {[%emt 0:00:23]} 7. h3 {[%emt 0:00:53]} Nf6 {[%emt 0:00:56]} 8. Qd2 {[%emt 0:01:26]} Be6 {[%emt 0:01:03]} 9. Bb3 {[%emt 0:00:45]} Ba5 {[%emt 0:07:06]} 10. O-O-O {[%emt 0:04:43]} Qe7 {[%emt 0:19:36]} 11. Rhe1 {[%emt 0:08:53]} a6 {[%emt 0:05:48]} 12. Nh2 {[%emt 0:03:15]} g5 {[%emt 0:04:20]} 13. f3 {[%emt 0:02:09]} Nd4 {[%emt 0:10:45]} 14. Ba4+ {[%emt 0:02:48]} b5 {[%emt 0:00:17]} 15. Bb3 {[%emt 0:00:05]} c5 {[%emt 0:00:23]} 16. Kb1 {[%emt 0:01:40]} 0-1

[Event "IIFL Wealth  4th Mumbai Junior U-13"]
[Site "Mumbai"]
[Date "2019.01.03"]
[Round "5"]
[White "Vittanala Shanmuk Saish"]
[Black "Shah Vrisha Parag"]
[Result "1/2-1/2"]
[ECO "B53"]
[WhiteElo "1005"]
[BlackElo "1240"]
[Annotator "NA RC"]
[PlyCount "76"]
[EventDate "2018.12.30"]
[EventType "swiss"]
[EventCountry "IND"]
[SourceTitle "playchess.com"]
[Source "ChessBase"]
[SourceQuality "1"]
[TimeControl "40/5400+30:1800+30"]

1. e4 c5 2. Nf3 d6 3. d4 cxd4 4. Qxd4 Nc6 5. Bb5 Bd7 6. Bxc6 Bxc6 7. Nc3 Nf6 8. Bg5 e5 9. Qd3 h6 10. Bh4 g5 11. Bg3 Nh5 12. O-O-O Qc7 13. Kb1 a6 14. h4 Nxg3 15. fxg3 g4 16. Nh2 h5 17. Rhf1 O-O-O 18. Qc4 Rd7 19. Rf6 Bg7 20. Rf5 f6 21. Qe6 Kd8 22. Nd5 Bxd5 23. Qxd5 Qc6 24. Qxc6 bxc6 25. Nf1 d5 26. exd5 cxd5 27. c3 Ke7 28. Ne3 Ke6 29. Rf2 e4 30. b4 Rc8 31. Rdd2 Rcc7 32. Rd1 Rc8 33. Rdd2 Rcc7 34. Rd1 Rc8 35. Rdd2 Rcc7 36. Rd1 Rc8 37. Rdd2 Rcc7 38. Rd1 Rc8 1/2-1/2